[Event "Early-Titled-Tuesday-Blitz-October-03-2023"]
[Site "Chess.com"]
[Date "2023.10.03"]
[Round "5"]
[White "Doomfist26"]
[Black "B_nn_t"]
[Result "1-0"]
[WhiteElo "2583"]
[BlackElo "2400"]
[TimeControl "180+1"]
[EndTime "8:52:39 PDT"]
[Termination "Doomfist26 won by resignation"]

1. e4 {[%clk 0:03:00.9]} 1... c5 {[%clk 0:02:57.8]} 2. Nf3 {[%clk 0:02:57.9]}
2... Nc6 {[%clk 0:02:56.8]} 3. Bb5 {[%clk 0:02:57.5]} 3... g6 {[%clk 0:02:55.5]}
4. O-O {[%clk 0:02:57.6]} 4... Bg7 {[%clk 0:02:55.6]} 5. c3 {[%clk 0:02:58.3]}
5... e5 {[%clk 0:02:55.1]} 6. d4 {[%clk 0:02:58.6]} 6... cxd4 {[%clk 0:02:55]}
7. cxd4 {[%clk 0:02:59.3]} 7... Nxd4 {[%clk 0:02:54.8]} 8. Nxd4 {[%clk
0:02:58.5]} 8... exd4 {[%clk 0:02:55.7]} 9. Bf4 {[%clk 0:02:59]} 9... Ne7 {[%clk
0:02:54.8]} 10. a4 {[%clk 0:02:51.7]} 10... O-O {[%clk 0:02:54.6]} 11. Bd6
{[%clk 0:02:52.3]} 11... Re8 {[%clk 0:02:52.4]} 12. Bc4 {[%clk 0:02:41]} 12...
Nc6 {[%clk 0:02:44.6]} 13. Nd2 {[%clk 0:02:38.9]} 13... Qf6 {[%clk 0:02:39.9]}
14. Bg3 {[%clk 0:02:17.3]} 14... d6 {[%clk 0:02:35.9]} 15. f4 {[%clk 0:02:14.6]}
15... h5 {[%clk 0:02:33.6]} 16. e5 {[%clk 0:02:11.9]} 16... dxe5 {[%clk
0:02:31.8]} 17. fxe5 {[%clk 0:02:12.1]} 17... Qe7 {[%clk 0:02:23.5]} 18. Rxf7
{[%clk 0:02:09.7]} 18... Qc5 {[%clk 0:02:21.2]} 19. Re7+ {[%clk 0:01:50.7]}
19... Kf8 {[%clk 0:02:18]} 20. Rc7 {[%clk 0:01:32.9]} 20... Bf5 {[%clk
0:02:01.2]} 21. Rf7+ {[%clk 0:01:30.9]} 21... Kg8 {[%clk 0:02:01.3]} 22. Rxf5+
{[%clk 0:01:31.2]} 22... Kh7 {[%clk 0:02:00.6]} 23. Rxh5+ {[%clk 0:01:28.8]}
23... gxh5 {[%clk 0:01:59.4]} 24. Qxh5+ {[%clk 0:01:28.8]} 24... Bh6 {[%clk
0:02:00]} 25. Bd3+ {[%clk 0:01:24.9]} 25... Kg7 {[%clk 0:01:56.8]} 26. Qg6+
{[%clk 0:01:24.9]} 26... Kf8 {[%clk 0:01:57.6]} 27. Qf6+ {[%clk 0:01:22.6]}
27... Kg8 {[%clk 0:01:57.7]} 28. Qxh6 {[%clk 0:01:22.3]} 28... Qe7 {[%clk
0:01:54.4]} 29. Bc4+ {[%clk 0:01:21.6]} 1-0

[Event "Early-Titled-Tuesday-Blitz-October-03-2023"]
[Site "Chess.com"]
[Date "2023.10.03"]
[Round "5"]
[White "parintele_chess"]
[Black "demondom"]
[Result "1-0"]
[WhiteElo "2247"]
[BlackElo "2109"]
[TimeControl "180+1"]
[EndTime "8:52:42 PDT"]
[Termination "parintele_chess won by resignation"]

1. d4 {[%clk 0:03:00.9]} 1... Nf6 {[%clk 0:02:57.5]} 2. Bf4 {[%clk 0:03:01.1]}
2... e6 {[%clk 0:02:56.7]} 3. Nf3 {[%clk 0:03:01.4]} 3... d5 {[%clk 0:02:56.9]}
4. e3 {[%clk 0:03:01.8]} 4... c5 {[%clk 0:02:57.1]} 5. c3 {[%clk 0:03:01.8]}
5... Nc6 {[%clk 0:02:57]} 6. Nbd2 {[%clk 0:03:02.1]} 6... Bd6 {[%clk 0:02:56.9]}
7. Bg3 {[%clk 0:03:02.5]} 7... O-O {[%clk 0:02:53.5]} 8. Bd3 {[%clk 0:03:02.4]}
8... b6 {[%clk 0:02:53.8]} 9. e4 {[%clk 0:03:02.4]} 9... dxe4 {[%clk 0:02:53]}
10. Nxe4 {[%clk 0:03:02.3]} 10... Nxe4 {[%clk 0:02:52.4]} 11. Bxe4 {[%clk
0:03:03.2]} 11... Bb7 {[%clk 0:02:44.6]} 12. dxc5 {[%clk 0:03:02.5]} 12... Bxg3
{[%clk 0:02:42.4]} 13. hxg3 {[%clk 0:02:51.7]} 13... f5 {[%clk 0:02:40.1]} 14.
Bxc6 {[%clk 0:02:45.2]} 14... Bxc6 {[%clk 0:02:38.7]} 15. Qxd8 {[%clk
0:02:42.3]} 15... Rfxd8 {[%clk 0:02:38.7]} 16. cxb6 {[%clk 0:02:38]} 16... axb6
{[%clk 0:02:38.7]} 17. a3 {[%clk 0:02:35.6]} 17... Be4 {[%clk 0:02:31.7]} 18.
O-O {[%clk 0:02:23.2]} 18... h6 {[%clk 0:02:30.8]} 19. Rfd1 {[%clk 0:02:17.8]}
19... Kf7 {[%clk 0:02:29.8]} 20. Kf1 {[%clk 0:02:09.9]} 20... Kf6 {[%clk
0:02:29.2]} 21. Ke2 {[%clk 0:02:07.1]} 21... Bc2 {[%clk 0:02:22.3]} 22. Rxd8
{[%clk 0:02:05.1]} 22... Rxd8 {[%clk 0:02:22.1]} 23. Rc1 {[%clk 0:02:05.4]}
23... Bd3+ {[%clk 0:02:21.6]} 24. Ke1 {[%clk 0:01:59]} 24... e5 {[%clk
0:02:17.6]} 25. Rd1 {[%clk 0:01:50.4]} 25... b5 {[%clk 0:02:15.4]} 26. Ng1
{[%clk 0:01:43.6]} 26... e4 {[%clk 0:02:12.6]} 27. Ne2 {[%clk 0:01:42.2]} 27...
Rb8 {[%clk 0:02:09.2]} 28. Nf4 {[%clk 0:01:39.4]} 28... Bc4 {[%clk 0:02:09.2]}
29. Nd5+ {[%clk 0:01:34.6]} 29... Ke5 {[%clk 0:02:08]} 30. Nb4 {[%clk
0:01:23.1]} 30... g5 {[%clk 0:02:00.9]} 31. Nc6+ {[%clk 0:01:22.5]} 1-0

[Event "Early-Titled-Tuesday-Blitz-October-03-2023"]
[Site "Chess.com"]
[Date "2023.10.03"]
[Round "5"]
[White "microbear"]
[Black "dennisodessa"]
[Result "0-1"]
[WhiteElo "2188"]
[BlackElo "2472"]
[TimeControl "180+1"]
[EndTime "8:53:02 PDT"]
[Termination "dennisodessa won by resignation"]

1. e4 {[%clk 0:03:00.9]} 1... e6 {[%clk 0:03:00.9]} 2. d4 {[%clk 0:02:57]} 2...
d5 {[%clk 0:03:01]} 3. exd5 {[%clk 0:02:57.4]} 3... exd5 {[%clk 0:03:01.9]} 4.
Qf3 {[%clk 0:02:58.1]} 4... Bd6 {[%clk 0:02:57.8]} 5. Bd3 {[%clk 0:02:56.9]}
5... Nf6 {[%clk 0:02:57.5]} 6. h3 {[%clk 0:02:53.3]} 6... h6 {[%clk 0:02:57.3]}
7. Ne2 {[%clk 0:02:53.5]} 7... O-O {[%clk 0:02:57.4]} 8. O-O {[%clk 0:02:53.7]}
8... Re8 {[%clk 0:02:57.1]} 9. c3 {[%clk 0:02:53.2]} 9... Nbd7 {[%clk
0:02:50.6]} 10. Bf4 {[%clk 0:02:43.3]} 10... Nf8 {[%clk 0:02:50.4]} 11. Bxd6
{[%clk 0:02:42.8]} 11... Qxd6 {[%clk 0:02:51.3]} 12. Nd2 {[%clk 0:02:43.3]}
12... c6 {[%clk 0:02:49.4]} 13. Rfe1 {[%clk 0:02:42.2]} 13... Ng6 {[%clk
0:02:48.1]} 14. Ng3 {[%clk 0:02:19]} 14... Bd7 {[%clk 0:02:47.5]} 15. Re3 {[%clk
0:02:12.5]} 15... Rxe3 {[%clk 0:02:41.3]} 16. fxe3 {[%clk 0:01:58.7]} 16... Re8
{[%clk 0:02:42.2]} 17. Re1 {[%clk 0:01:45.3]} 17... Bg4 {[%clk 0:02:04.8]} 18.
hxg4 {[%clk 0:01:17.1]} 18... Nh4 {[%clk 0:02:04.1]} 19. Qf2 {[%clk 0:01:10.6]}
19... Nxg4 {[%clk 0:02:03.8]} 20. Nf5 {[%clk 0:00:34.6]} 0-1

[Event "Early-Titled-Tuesday-Blitz-October-03-2023"]
[Site "Chess.com"]
[Date "2023.10.03"]
[Round "5"]
[White "Mops_2004"]
[Black "borocotoajua"]
[Result "1-0"]
[WhiteElo "2805"]
[BlackElo "2611"]
[TimeControl "180+1"]
[EndTime "8:53:09 PDT"]
[Termination "Mops_2004 won by resignation"]

1. g3 {[%clk 0:03:00.9]} 1... Nf6 {[%clk 0:02:54.4]} 2. Bg2 {[%clk 0:03:01]}
2... g6 {[%clk 0:02:53.8]} 3. d4 {[%clk 0:03:00.9]} 3... Bg7 {[%clk 0:02:51.4]}
4. e4 {[%clk 0:03:01]} 4... d6 {[%clk 0:02:51.6]} 5. Nc3 {[%clk 0:03:01.1]} 5...
O-O {[%clk 0:02:51.6]} 6. Nf3 {[%clk 0:03:01.7]} 6... Nc6 {[%clk 0:02:37.1]} 7.
d5 {[%clk 0:03:01.7]} 7... Nb8 {[%clk 0:02:34.8]} 8. O-O {[%clk 0:03:01.7]} 8...
a5 {[%clk 0:02:22.9]} 9. Re1 {[%clk 0:02:55]} 9... Bg4 {[%clk 0:02:18.2]} 10. h3
{[%clk 0:02:50.6]} 10... Bxf3 {[%clk 0:02:18.3]} 11. Qxf3 {[%clk 0:02:51.1]}
11... Na6 {[%clk 0:02:19.2]} 12. Bf4 {[%clk 0:02:42.9]} 12... Nd7 {[%clk
0:02:14.8]} 13. h4 {[%clk 0:02:42.9]} 13... c6 {[%clk 0:02:10.6]} 14. h5 {[%clk
0:02:41.8]} 14... Qb6 {[%clk 0:02:08]} 15. Rab1 {[%clk 0:02:39]} 15... Nb4
{[%clk 0:02:01.2]} 16. Qe2 {[%clk 0:02:37.9]} 16... Qa6 {[%clk 0:01:05.9]} 17.
Qd2 {[%clk 0:02:37.7]} 17... Ne5 {[%clk 0:01:03.9]} 18. b3 {[%clk 0:02:38]}
18... gxh5 {[%clk 0:00:59.7]} 19. a3 {[%clk 0:02:31.2]} 19... c5 {[%clk
0:00:53.2]} 20. axb4 {[%clk 0:02:20]} 20... cxb4 {[%clk 0:00:53.4]} 21. Ne2
{[%clk 0:02:15.3]} 21... Rac8 {[%clk 0:00:53.4]} 22. Nd4 {[%clk 0:02:14.4]}
22... Rc3 {[%clk 0:00:52]} 23. Nf5 {[%clk 0:02:10.1]} 23... Bf6 {[%clk
0:00:50.2]} 24. Bg5 {[%clk 0:02:09.4]} 24... Bxg5 {[%clk 0:00:30.2]} 25. Qxg5+
{[%clk 0:02:08.8]} 25... Ng6 {[%clk 0:00:31.1]} 26. Qh6 {[%clk 0:02:06.2]} 1-0

[Event "Early-Titled-Tuesday-Blitz-October-03-2023"]
[Site "Chess.com"]
[Date "2023.10.03"]
[Round "5"]
[White "Daffidollchess2"]
[Black "HajiyevKanan"]
[Result "0-1"]
[WhiteElo "2703"]
[BlackElo "2542"]
[TimeControl "180+1"]
[EndTime "8:53:13 PDT"]
[Termination "HajiyevKanan won by resignation"]

1. e4 {[%clk 0:02:56.1]} 1... c6 {[%clk 0:03:00.7]} 2. Nc3 {[%clk 0:02:55.6]}
2... d5 {[%clk 0:03:01.6]} 3. d4 {[%clk 0:02:55.8]} 3... a6 {[%clk 0:03:02.4]}
4. Nf3 {[%clk 0:02:38.3]} 4... Bg4 {[%clk 0:03:02.1]} 5. h3 {[%clk 0:02:38.2]}
5... Bh5 {[%clk 0:03:02.3]} 6. Bd3 {[%clk 0:02:33.4]} 6... e6 {[%clk 0:03:02.3]}
7. Bf4 {[%clk 0:02:24.2]} 7... Nf6 {[%clk 0:03:01.5]} 8. e5 {[%clk 0:02:22.8]}
8... Nfd7 {[%clk 0:03:01.5]} 9. g4 {[%clk 0:02:21]} 9... Bg6 {[%clk 0:03:01.5]}
10. Bxg6 {[%clk 0:02:18.9]} 10... hxg6 {[%clk 0:03:02.4]} 11. Ne2 {[%clk
0:02:10.1]} 11... c5 {[%clk 0:03:02.3]} 12. c3 {[%clk 0:02:10.6]} 12... Nc6
{[%clk 0:03:02.3]} 13. Kf1 {[%clk 0:02:09.7]} 13... Qb6 {[%clk 0:03:00.3]} 14.
b3 {[%clk 0:02:05.6]} 14... Rc8 {[%clk 0:02:49.2]} 15. Kg2 {[%clk 0:02:05.2]}
15... cxd4 {[%clk 0:02:49]} 16. Nexd4 {[%clk 0:02:01.3]} 16... Nxd4 {[%clk
0:02:49.2]} 17. cxd4 {[%clk 0:02:01.3]} 17... Ba3 {[%clk 0:02:49.3]} 18. Bc1
{[%clk 0:01:52.6]} 18... Be7 {[%clk 0:02:39.2]} 19. Be3 {[%clk 0:01:42.6]} 19...
Ba3 {[%clk 0:02:38.4]} 20. Bc1 {[%clk 0:01:42.4]} 20... Be7 {[%clk 0:02:38.2]}
21. Bb2 {[%clk 0:01:42.9]} 21... O-O {[%clk 0:02:32.5]} 22. Rc1 {[%clk
0:01:42.3]} 22... Rc6 {[%clk 0:02:30.9]} 23. Rxc6 {[%clk 0:01:41.5]} 23... Qxc6
{[%clk 0:02:31.7]} 24. Qd3 {[%clk 0:01:39.4]} 24... Nb6 {[%clk 0:02:27.6]} 25.
h4 {[%clk 0:01:38.1]} 25... Qb5 {[%clk 0:02:24.8]} 26. Qb1 {[%clk 0:01:36.1]}
26... Qe2 {[%clk 0:02:21.4]} 27. h5 {[%clk 0:01:36.1]} 27... g5 {[%clk
0:02:18.7]} 28. h6 {[%clk 0:01:24.7]} 28... g6 {[%clk 0:02:06.5]} 29. Bc1 {[%clk
0:01:23.8]} 29... Rc8 {[%clk 0:01:56.1]} 30. Bxg5 {[%clk 0:01:19.1]} 30... Bxg5
{[%clk 0:01:55.5]} 31. Nxg5 {[%clk 0:01:19.4]} 31... Qxg4+ {[%clk 0:01:55.6]}
32. Kf1 {[%clk 0:01:17.1]} 32... Qxg5 {[%clk 0:01:54.8]} 33. Ke2 {[%clk
0:01:09.8]} 33... Qg4+ {[%clk 0:01:52]} 34. Ke3 {[%clk 0:01:06.6]} 34... Rc3+
{[%clk 0:01:49.4]} 35. Kd2 {[%clk 0:01:06.9]} 35... Qxd4+ {[%clk 0:01:49.5]} 0-1

[Event "Early-Titled-Tuesday-Blitz-October-03-2023"]
[Site "Chess.com"]
[Date "2023.10.03"]
[Round "5"]
[White "Good_Knight_Kiss"]
[Black "NovozhilovSemen"]
[Result "0-1"]
[WhiteElo "2407"]
[BlackElo "2591"]
[TimeControl "180+1"]
[EndTime "8:53:14 PDT"]
[Termination "NovozhilovSemen won by resignation"]

1. e4 {[%clk 0:03:00.9]} 1... c5 {[%clk 0:02:59.6]} 2. Nf3 {[%clk 0:03:00.8]}
2... Nc6 {[%clk 0:02:59.3]} 3. d4 {[%clk 0:03:01.1]} 3... cxd4 {[%clk
0:02:59.9]} 4. Nxd4 {[%clk 0:03:01.9]} 4... Nf6 {[%clk 0:03:00]} 5. Nc3 {[%clk
0:03:02]} 5... d6 {[%clk 0:03:00.5]} 6. Nd5 {[%clk 0:03:02]} 6... Nxd5 {[%clk
0:02:59.1]} 7. exd5 {[%clk 0:03:02.9]} 7... Qa5+ {[%clk 0:02:59.2]} 8. Bd2
{[%clk 0:03:02.9]} 8... Qxd5 {[%clk 0:02:59.3]} 9. Nb5 {[%clk 0:03:03.6]} 9...
Qe6+ {[%clk 0:02:59.7]} 10. Be2 {[%clk 0:03:03.1]} 10... Qd7 {[%clk 0:03:00]}
11. c4 {[%clk 0:03:03.1]} 11... a6 {[%clk 0:02:59.8]} 12. Nc3 {[%clk 0:03:02.8]}
12... e6 {[%clk 0:02:58]} 13. Bf4 {[%clk 0:03:02.3]} 13... Be7 {[%clk
0:02:43.5]} 14. Qd2 {[%clk 0:03:02]} 14... O-O {[%clk 0:02:42.2]} 15. O-O {[%clk
0:03:02]} 15... f5 {[%clk 0:02:36.7]} 16. Rfd1 {[%clk 0:02:50.2]} 16... e5
{[%clk 0:02:28.6]} 17. Bg5 {[%clk 0:02:50.2]} 17... Bxg5 {[%clk 0:02:28.8]} 18.
Qxg5 {[%clk 0:02:49.7]} 18... Nd4 {[%clk 0:02:29]} 19. Bd3 {[%clk 0:02:22.7]}
19... h6 {[%clk 0:02:11.3]} 20. Qe3 {[%clk 0:02:05.4]} 20... Qf7 {[%clk
0:02:09.4]} 21. Nd5 {[%clk 0:01:53.4]} 21... f4 {[%clk 0:02:06.1]} 22. Qe1
{[%clk 0:01:42.7]} 22... Bg4 {[%clk 0:02:00.8]} 23. f3 {[%clk 0:01:34]} 23...
Bxf3 {[%clk 0:01:57.9]} 24. Rd2 {[%clk 0:01:18.7]} 24... Bg4 {[%clk 0:01:49.6]}
25. Qe4 {[%clk 0:00:53.8]} 25... Bf5 {[%clk 0:01:47.3]} 26. Qe1 {[%clk
0:00:53.7]} 26... Bxd3 {[%clk 0:01:43.2]} 27. Rxd3 {[%clk 0:00:54.6]} 27... Nc2
{[%clk 0:01:43.6]} 0-1

[Event "Early-Titled-Tuesday-Blitz-October-03-2023"]
[Site "Chess.com"]
[Date "2023.10.03"]
[Round "5"]
[White "FM_Kappeler"]
[Black "Actuary44"]
[Result "0-1"]
[WhiteElo "2303"]
[BlackElo "2519"]
[TimeControl "180+1"]
[EndTime "8:53:36 PDT"]
[Termination "Actuary44 won by resignation"]

1. d4 {[%clk 0:03:00.9]} 1... Nf6 {[%clk 0:02:59.9]} 2. c4 {[%clk 0:03:00.9]}
2... g6 {[%clk 0:03:00.5]} 3. Nc3 {[%clk 0:03:00.6]} 3... Bg7 {[%clk 0:03:01.1]}
4. e4 {[%clk 0:03:00.2]} 4... d6 {[%clk 0:03:01.8]} 5. Nf3 {[%clk 0:03:00.5]}
5... O-O {[%clk 0:03:02.3]} 6. Be2 {[%clk 0:03:01]} 6... e5 {[%clk 0:03:02]} 7.
O-O {[%clk 0:03:01.6]} 7... Nc6 {[%clk 0:03:02]} 8. d5 {[%clk 0:03:01.9]} 8...
Ne7 {[%clk 0:03:02.6]} 9. b4 {[%clk 0:03:02.1]} 9... Nh5 {[%clk 0:03:02.6]} 10.
Re1 {[%clk 0:03:01.7]} 10... f5 {[%clk 0:03:02.7]} 11. Ng5 {[%clk 0:03:01.3]}
11... Nf4 {[%clk 0:03:02]} 12. Bf1 {[%clk 0:02:52.1]} 12... fxe4 {[%clk
0:02:56.3]} 13. Ncxe4 {[%clk 0:02:40.6]} 13... Nf5 {[%clk 0:02:56.5]} 14. c5
{[%clk 0:02:19.4]} 14... Nd4 {[%clk 0:02:52.3]} 15. cxd6 {[%clk 0:02:04.8]}
15... cxd6 {[%clk 0:02:52]} 16. Be3 {[%clk 0:02:04.2]} 16... h6 {[%clk
0:02:45.6]} 17. Bxd4 {[%clk 0:01:44.6]} 17... exd4 {[%clk 0:02:46.5]} 18. Nf3
{[%clk 0:01:24.2]} 18... Bg4 {[%clk 0:02:44.4]} 19. Qb3 {[%clk 0:01:16.2]} 19...
d3 {[%clk 0:02:36.6]} 20. Bxd3 {[%clk 0:00:55.9]} 20... Nxd3 {[%clk 0:02:31.9]}
21. Qxd3 {[%clk 0:00:55.5]} 21... Bxf3 {[%clk 0:02:31.4]} 22. gxf3 {[%clk
0:00:51.6]} 22... Bxa1 {[%clk 0:02:31.2]} 23. Rxa1 {[%clk 0:00:51.5]} 23... Rc8
{[%clk 0:02:24.4]} 24. Re1 {[%clk 0:00:50.7]} 24... Rf5 {[%clk 0:02:19.3]} 25.
Ng3 {[%clk 0:00:49.3]} 25... Qg5 {[%clk 0:02:06.1]} 26. Qe4 {[%clk 0:00:29.2]}
26... Re5 {[%clk 0:02:01.4]} 27. Qb1 {[%clk 0:00:19]} 27... Rxe1+ {[%clk
0:02:02.3]} 28. Qxe1 {[%clk 0:00:18.8]} 28... Rc1 {[%clk 0:02:03]} 0-1

[Event "Early-Titled-Tuesday-Blitz-October-03-2023"]
[Site "Chess.com"]
[Date "2023.10.03"]
[Round "5"]
[White "spotbet"]
[Black "SanchezKelvin"]
[Result "0-1"]
[WhiteElo "2431"]
[BlackElo "2619"]
[TimeControl "180+1"]
[EndTime "8:53:39 PDT"]
[Termination "SanchezKelvin won by resignation"]

1. e4 {[%clk 0:03:00.9]} 1... e5 {[%clk 0:02:59.1]} 2. f4 {[%clk 0:03:00.7]}
2... exf4 {[%clk 0:02:59]} 3. Bc4 {[%clk 0:03:00.9]} 3... Nc6 {[%clk 0:02:57.4]}
4. Nf3 {[%clk 0:03:01.2]} 4... g5 {[%clk 0:02:56.5]} 5. d4 {[%clk 0:03:01.4]}
5... Bg7 {[%clk 0:02:53.6]} 6. c3 {[%clk 0:03:01.2]} 6... h6 {[%clk 0:02:52]} 7.
O-O {[%clk 0:03:01.4]} 7... Nge7 {[%clk 0:02:51.8]} 8. g3 {[%clk 0:03:02]} 8...
g4 {[%clk 0:02:49.7]} 9. Bxf4 {[%clk 0:02:58.7]} 9... gxf3 {[%clk 0:02:48.2]}
10. Bxf7+ {[%clk 0:02:58.9]} 10... Kxf7 {[%clk 0:02:46.6]} 11. Qxf3 {[%clk
0:02:59.5]} 11... Kg8 {[%clk 0:02:46.7]} 12. Qh5 {[%clk 0:02:53.9]} 12... Rh7
{[%clk 0:02:40.4]} 13. Nd2 {[%clk 0:02:41.9]} 13... d6 {[%clk 0:02:37.1]} 14.
Be3 {[%clk 0:02:33.3]} 14... Bd7 {[%clk 0:02:30.9]} 15. Rf7 {[%clk 0:02:29.4]}
15... Be8 {[%clk 0:02:23.9]} 16. Rxg7+ {[%clk 0:02:26.7]} 16... Kxg7 {[%clk
0:02:15.8]} 17. Qb5 {[%clk 0:02:19.8]} 17... Qd7 {[%clk 0:01:57.5]} 18. Qxb7
{[%clk 0:02:17.4]} 18... Rb8 {[%clk 0:01:57.4]} 19. Qa6 {[%clk 0:02:17.8]} 19...
Rxb2 {[%clk 0:01:54.6]} 20. Rf1 {[%clk 0:02:18]} 20... Kg8 {[%clk 0:01:52.9]}
21. Nb3 {[%clk 0:02:06.5]} 21... Qh3 {[%clk 0:01:46.7]} 22. Bf2 {[%clk
0:02:02.9]} 22... Rf7 {[%clk 0:01:45.6]} 23. Nc1 {[%clk 0:01:49.7]} 23... Rd2
{[%clk 0:01:32]} 24. Nb3 {[%clk 0:01:42.2]} 24... Rfxf2 {[%clk 0:01:27.7]} 25.
Rxf2 {[%clk 0:01:42.1]} 25... Rd1+ {[%clk 0:01:27.7]} 26. Rf1 {[%clk 0:01:42.7]}
26... Rxf1+ {[%clk 0:01:27.4]} 27. Qxf1 {[%clk 0:01:42.5]} 27... Qxf1+ {[%clk
0:01:28.3]} 28. Kxf1 {[%clk 0:01:43.4]} 28... Bf7 {[%clk 0:01:27.2]} 29. Nc1
{[%clk 0:01:37.6]} 29... Bc4+ {[%clk 0:01:26.7]} 30. Kf2 {[%clk 0:01:37.8]}
30... d5 {[%clk 0:01:26]} 31. Ke3 {[%clk 0:01:37.4]} 31... dxe4 {[%clk
0:01:24.6]} 32. Kxe4 {[%clk 0:01:37.8]} 32... Bd5+ {[%clk 0:01:24.8]} 33. Kd3
{[%clk 0:01:36.9]} 33... Na5 {[%clk 0:01:24.9]} 34. a3 {[%clk 0:01:34.2]} 34...
a6 {[%clk 0:01:24.4]} 35. Kd2 {[%clk 0:01:33.2]} 35... Nb3+ {[%clk 0:01:23.9]}
36. Nxb3 {[%clk 0:01:32.6]} 36... Bxb3 {[%clk 0:01:24.8]} 37. Kd3 {[%clk
0:01:33.1]} 37... Kf7 {[%clk 0:01:21.5]} 38. c4 {[%clk 0:01:34]} 38... Ke6
{[%clk 0:01:21.5]} 39. Kc3 {[%clk 0:01:34.6]} 39... Ba2 {[%clk 0:01:21.6]} 40.
Kb4 {[%clk 0:01:35.1]} 40... Nc6+ {[%clk 0:01:17.9]} 41. Kc5 {[%clk 0:01:35.5]}
41... Kd7 {[%clk 0:01:17.7]} 42. d5 {[%clk 0:01:35.7]} 42... Ne5 {[%clk
0:01:18]} 0-1

[Event "Early-Titled-Tuesday-Blitz-October-03-2023"]
[Site "Chess.com"]
[Date "2023.10.03"]
[Round "5"]
[White "Shuvalov"]
[Black "MokshAD1603"]
[Result "1/2-1/2"]
[WhiteElo "2469"]
[BlackElo "2618"]
[TimeControl "180+1"]
[EndTime "8:53:40 PDT"]
[Termination "Game drawn by repetition"]

1. d4 {[%clk 0:03:00.9]} 1... Nf6 {[%clk 0:02:30.1]} 2. c4 {[%clk 0:03:00.6]}
2... e6 {[%clk 0:02:27.9]} 3. Nc3 {[%clk 0:03:00.8]} 3... Bb4 {[%clk 0:02:26.1]}
4. e3 {[%clk 0:03:01]} 4... O-O {[%clk 0:02:23.4]} 5. a3 {[%clk 0:03:00.7]} 5...
Bxc3+ {[%clk 0:02:22.2]} 6. bxc3 {[%clk 0:03:01.6]} 6... c5 {[%clk 0:02:23.1]}
7. Ne2 {[%clk 0:02:59.4]} 7... Nc6 {[%clk 0:02:22.4]} 8. Ng3 {[%clk 0:02:59.2]}
8... b6 {[%clk 0:02:20.5]} 9. e4 {[%clk 0:02:57.5]} 9... d6 {[%clk 0:02:17.5]}
10. Ra2 {[%clk 0:02:53.5]} 10... Ba6 {[%clk 0:02:15.6]} 11. Bg5 {[%clk
0:02:52.9]} 11... h6 {[%clk 0:02:13.6]} 12. h4 {[%clk 0:02:52.7]} 12... e5
{[%clk 0:01:49.4]} 13. dxc5 {[%clk 0:02:42.1]} 13... dxc5 {[%clk 0:01:31.2]} 14.
Rd2 {[%clk 0:02:41.9]} 14... Qe7 {[%clk 0:01:29.2]} 15. Nf5 {[%clk 0:02:40.6]}
15... Qe6 {[%clk 0:01:28.9]} 16. Rd6 {[%clk 0:02:29.7]} 16... Rad8 {[%clk
0:01:28]} 17. Bxf6 {[%clk 0:02:11.9]} 17... Rxd6 {[%clk 0:01:11.3]} 18. Qxd6
{[%clk 0:02:04.4]} 18... Qxd6 {[%clk 0:00:54.2]} 19. Nxd6 {[%clk 0:02:05.3]}
19... gxf6 {[%clk 0:00:54.2]} 20. Rh3 {[%clk 0:02:02.6]} 20... Kh7 {[%clk
0:00:52.7]} 21. Rg3 {[%clk 0:01:56.1]} 21... Na5 {[%clk 0:00:44.9]} 22. Rf3
{[%clk 0:01:49.1]} 22... Kg7 {[%clk 0:00:32.1]} 23. Rg3+ {[%clk 0:01:44.8]}
23... Kh7 {[%clk 0:00:32.1]} 24. Rf3 {[%clk 0:01:45.1]} 24... Kg7 {[%clk
0:00:32.5]} 25. Rg3+ {[%clk 0:01:34.9]} 25... Kh7 {[%clk 0:00:32.5]} 1/2-1/2

[Event "Early-Titled-Tuesday-Blitz-October-03-2023"]
[Site "Chess.com"]
[Date "2023.10.03"]
[Round "5"]
[White "BashirovKemal"]
[Black "Grischuk"]
[Result "0-1"]
[WhiteElo "2661"]
[BlackElo "3000"]
[TimeControl "180+1"]
[EndTime "8:53:44 PDT"]
[Termination "Grischuk won by resignation"]

1. d4 {[%clk 0:03:00.9]} 1... e6 {[%clk 0:02:59.8]} 2. Nf3 {[%clk 0:02:58.2]}
2... c5 {[%clk 0:02:59.8]} 3. e3 {[%clk 0:02:57.2]} 3... Nf6 {[%clk 0:02:58.6]}
4. b3 {[%clk 0:02:57.4]} 4... b6 {[%clk 0:02:55.7]} 5. Bb2 {[%clk 0:02:57.5]}
5... Bb7 {[%clk 0:02:56]} 6. Be2 {[%clk 0:02:57.8]} 6... d5 {[%clk 0:02:46.7]}
7. O-O {[%clk 0:02:57.4]} 7... Nbd7 {[%clk 0:02:39.5]} 8. Nbd2 {[%clk
0:02:57.2]} 8... Bd6 {[%clk 0:02:39.1]} 9. c4 {[%clk 0:02:55.5]} 9... O-O {[%clk
0:02:39]} 10. Rc1 {[%clk 0:02:53.9]} 10... Rc8 {[%clk 0:02:37.9]} 11. Ne5 {[%clk
0:02:46.7]} 11... cxd4 {[%clk 0:02:30.9]} 12. exd4 {[%clk 0:02:47.6]} 12... Qe7
{[%clk 0:02:31]} 13. Nxd7 {[%clk 0:02:36.3]} 13... Nxd7 {[%clk 0:02:26.1]} 14.
cxd5 {[%clk 0:02:26.3]} 14... Bxd5 {[%clk 0:02:25]} 15. Nc4 {[%clk 0:02:24.5]}
15... Nf6 {[%clk 0:02:17.3]} 16. h3 {[%clk 0:02:17.8]} 16... Rfd8 {[%clk
0:02:16.5]} 17. Bd3 {[%clk 0:02:17.4]} 17... Bf4 {[%clk 0:02:09.9]} 18. Rc2
{[%clk 0:02:14.7]} 18... Qb7 {[%clk 0:02:09.8]} 19. f3 {[%clk 0:02:09.9]} 19...
Bxc4 {[%clk 0:01:45.6]} 20. bxc4 {[%clk 0:02:02.5]} 20... Qb8 {[%clk 0:01:43.3]}
21. Qe2 {[%clk 0:02:00.3]} 21... Bh2+ {[%clk 0:01:43.1]} 22. Kf2 {[%clk
0:01:42.5]} 22... Qg3+ {[%clk 0:01:42.5]} 23. Ke3 {[%clk 0:01:42.6]} 23... Qf4+
{[%clk 0:01:36.9]} 24. Kf2 {[%clk 0:01:41.6]} 24... Qh4+ {[%clk 0:01:37.8]} 25.
g3 {[%clk 0:01:29.2]} 25... Qxg3+ {[%clk 0:01:37.3]} 26. Ke3 {[%clk 0:01:29.4]}
26... Qf4+ {[%clk 0:01:17.5]} 27. Kf2 {[%clk 0:01:29.4]} 27... Qh4+ {[%clk
0:01:12]} 28. Kg2 {[%clk 0:01:25.3]} 28... Bf4 {[%clk 0:01:12.5]} 29. Qf2 {[%clk
0:01:17.4]} 29... Qg5+ {[%clk 0:01:12.6]} 30. Kh1 {[%clk 0:01:16.7]} 30... Nh5
{[%clk 0:01:13.2]} 31. Rg1 {[%clk 0:01:13.4]} 31... Ng3+ {[%clk 0:01:13]} 0-1